[Event "13th KIIT Festival-A 2022"]
[Site "Bhubaneswar"]
[Date "2022.05.25"]
[Round "5.14"]
[White "Ankit Ray"]
[Black "Saravana, Krishnan P."]
[Result "0-1"]
[ECO "A57"]
[WhiteElo "1932"]
[BlackElo "2269"]
[Annotator "TA"]
[PlyCount "164"]
[EventDate "2022.05.15"]
[EventType "swiss"]
[EventCountry "IND"]
[SourceTitle "playchess.com"]
[Source "ChessBase"]
[SourceQuality "1"]
[TimeControl "5400+30"]

{[%evp 9,164,-39,-34,-43,-36,-36,-44,-38,-28,-83,-69,-69,-56,-52,-54,-97,-92,-88,-62,-76,-36,-102,-75,-110,-104,-153,-141,-284,-295,-292,-292,-292,-280,-420,-425,-411,-389,-390,-383,-372,-366,-391,-275,-283,-269,-266,-208,-209,-189,-199,-184,-216,-220,-213,-194,-230,-190,-187,-187,-191,-191,-191,-152,-182,-147,-147,-147,-147,0,-142,-90,-134,-142,-237,-208,-232,-130,-124,-122,-154,-143,-306,-299,-288,-217,-224,-224,-224,0,-224,-224,-224,-224,-224,-224,-224,-224,-224,-224,-224,-224,-224,-224,-224,-224,-224,-224,-224,-224,-224,-213,-213,-213,-213,-213,-213,-213,-213,-213,-213,-213,-725,-340,-683,-647,-607,-607,-1156,-1156,-1156,-429,-1156,-1156,-1156,-1156,-1156,-1156,-1149,-1105,-1065,-1014,-950,-939,-931,-836,-29978,-29980,-29980,-29980,-29981,-29982,-29983,-29982,-29984,-29985,-29985,-29986]} 1. d4 {[%emt 0:01:08]} Nf6 {[%emt 0:00:11]} 2. Nf3 {[%emt 0:01:15]} c5 {[%emt 0:00:13]} 3. d5 {[%emt 0:02:38]} b5 {[%emt 0:00:10]} 4. c4 {[%emt 0:02:09]} Bb7 {[%emt 0:00:17]} 5. cxb5 {[%emt 0:08:36]} Bxd5 {[%emt 0:00:50]} 6. Nc3 {[%emt 0:00:22] A57: Benko/Volga Gambit.} Bb7 {[%emt 0:02:55]} 7. Bg5 {[%emt 0:06:28]} d5 $1 {[%emt 0:00:49]} 8. e3 {[%emt 0:00:08] Inhibits d4. Black is slightly better.} e6 {[%emt 0:02:58] [#]} 9. Qa4 $146 {[%emt 0:15:43]} (9. a4 $11) ({Predecessor:} 9. Bd3 Be7 10. Ne5 O-O 11. Qc2 h6 12. Bf4 a6 13. Nc6 Nxc6 14. bxc6 Bxc6 15. O-O-O {0-1 (31) Khusenkhojaev,M (2377)-Sivokho,S (2464) St Petersburg 2007}) 9... Nbd7 {[%emt 0:04:07]} 10. Be2 {[%emt 0:03:28]} Be7 {[%emt 0:01:21]} 11. O-O {[%emt 0:00:15]} O-O {[%emt 0:01:02]} 12. Rad1 {[%emt 0:01:10]} h6 {[%emt 0:04:00]} 13. Bh4 {[%emt 0:00:17]} Qc7 {[%emt 0:01:45]} 14. Bg3 {[%emt 0:01:03]} e5 {[%emt 0:09:16]} 15. Bd3 {[%emt 0:04:45]} (15. Qc2 $15) 15... Bd6 {[%emt 0:11:27]} 16. Qh4 {[%emt 0:04:12]} Rfe8 {[%emt 0:03:25] Strongly threatening ...d4.} 17. Bf5 {[%emt 0:01:17]} ({Better is} 17. Nd2) 17... d4 $1 $17 {[%emt 0:08:29]} 18. Ne4 {[%emt 0:06:16]} (18. Nb1 $17 {was worth a try.}) 18... Nxe4 $19 {[%emt 0:02:12]} 19. Bxe4 {[%emt 0:02:56] [#]} Be7 $1 {[%emt 0:00:06]} 20. Qg4 {[%emt 0:11:31]} Nf6 {[%emt 0:00:47][%csl LRe4,LRg4]} 21. Qh3 {[%emt 0:00:10]} (21. Bxe5 $142 Nxg4 22. Bxc7 Bxe4 23. exd4) 21... Nxe4 {[%emt 0:01:23]} ({Don't blunder} 21... Bxe4 $2 22. Bxe5 Qb6 23. exd4 $19) 22. Bxe5 {[%emt 0:00:11]} Bd6 {[%emt 0:00:26]} 23. exd4 {[%emt 0:00:46]} Bxe5 {[%emt 0:06:16]} 24. dxe5 {[%emt 0:00:17]} Rad8 {[%emt 0:00:23] Against Rd7} 25. Qg4 {[%emt 0:02:11]} Ng5 {[%emt 0:02:20]} 26. Nxg5 {[%emt 0:00:11]} hxg5 {[%emt 0:00:08]} 27. Qxg5 {[%emt 0:01:35]} Rxd1 {[%emt 0:00:47]} 28. Rxd1 {[%emt 0:00:03]} Qxe5 {[%emt 0:00:12]} 29. Qxe5 {[%emt 0:00:22]} Rxe5 {[%emt 0:00:05][%mdl 4096] Endgame KRB-KR} 30. Rd8+ {[%emt 0:00:27]} Kh7 {[%emt 0:00:09][%cal Re5e1]} 31. f3 {[%emt 0:00:07]} Rd5 {[%emt 0:03:41] Inhibits Rd7.} 32. Rb8 {[%emt 0:00:10]} Rd7 {[%emt 0:00:22]} 33. a4 {[%emt 0:00:04]} a6 {[%emt 0:03:02]} 34. bxa6 {[%emt 0:02:33]} Bxa6 {[%emt 0:00:05]} 35. Rb6 {[%emt 0:00:11]} Rd1+ {[%emt 0:02:54]} 36. Kf2 {[%emt 0:00:06]} Rd2+ {[%emt 0:00:10]} 37. Ke3 {[%emt 0:00:51]} Rd3+ {[%emt 0:04:48]} 38. Kf2 {[%emt 0:00:20]} Rd2+ {[%emt 0:01:16]} 39. Ke3 {[%emt 0:00:02]} Re2+ {[%emt 0:00:06]} 40. Kf4 {[%emt 0:00:13]} Bd3 {[%emt 0:06:28]} 41. Kg3 {[%emt 0:03:18]} (41. a5 $17 {keeps fighting.}) 41... Rc2 {[%emt 0:03:16]} 42. a5 {[%emt 0:01:59]} Rc1 {[%emt 0:04:35]} (42... Bf1 $19 43. a6 Rxg2+ 44. Kf4 Rxh2) 43. Rb3 $17 {[%emt 0:00:42]} Bc4 {[%emt 0:00:22]} 44. Re3 {[%emt 0:04:57]} Rc2 {[%emt 0:01:31]} 45. Ra3 $2 {[%emt 0:06:48]} (45. Rc3 $17 Rxc3 46. bxc3) 45... Rxb2 $19 {[%emt 0:04:48]} 46. a6 {[%emt 0:00:06]} Bd5 {[%emt 0:00:49]} 47. a7 {[%emt 0:00:22] [#]} Ba8 $1 {[%emt 0:00:09]} 48. Ra5 {[%emt 0:00:10]} c4 $2 {[%emt 0:00:36]} (48... Rb7 $19 {Hoping for ...c4.} 49. Kf2 c4) 49. Rc5 $2 {[%emt 0:00:04]} (49. Rh5+ $1 $11 {and White stays safe.} Kg6 50. Rh8) 49... Rb7 {[%emt 0:00:15]} 50. Rxc4 {[%emt 0:00:06]} Rxa7 {[%emt 0:00:04]} 51. Rc2 {[%emt 0:00:17]} Bd5 {[%emt 0:00:05]} 52. Rd2 {[%emt 0:01:19]} Be6 {[%emt 0:00:06]} 53. h4 {[%emt 0:00:46]} Ra2 {[%emt 0:00:47]} 54. Rd1 {[%emt 0:00:28]} Kg6 {[%emt 0:00:28]} 55. Re1 {[%emt 0:01:05]} Rd2 {[%emt 0:00:58]} 56. Rc1 {[%emt 0:00:42]} Kh5 {[%emt 0:01:11]} 57. Rc5+ {[%emt 0:00:17]} Rd5 {[%emt 0:00:06]} 58. Rc2 {[%emt 0:00:11]} Rd4 {[%emt 0:00:07]} 59. Rc5+ {[%emt 0:00:10]} f5 {[%emt 0:01:06][%cal Bf7f5,Bf5f4][%mdl 32]} 60. Re5 {[%emt 0:00:29]} Bd7 {[%emt 0:00:16] And now ...g6 would win.} 61. Re7 {[%emt 0:00:16]} f4+ {[%emt 0:00:28]} 62. Kh2 {[%emt 0:00:47]} Kg6 {[%emt 0:00:12]} 63. Re5 {[%emt 0:00:08]} Kf6 {[%emt 0:00:13]} 64. Rc5 {[%emt 0:00:23]} Be6 {[%emt 0:00:14] ...Rd8 is the strong threat.} 65. Kg1 $2 {[%emt 0:00:24]} (65. Rb5) 65... Rd1+ {[%emt 0:02:03]} (65... Rd5 $142 66. Rc3 Rh5) 66. Kf2 $2 {[%emt 0:00:09]} (66. Kh2) 66... Rh1 {[%emt 0:00:34]} 67. h5 {[%emt 0:01:33]} Bf5 {[%emt 0:00:29]} 68. g4 {[%emt 0:00:06]} fxg3+ {[%emt 0:00:14]} 69. Kxg3 {[%emt 0:00:08]} Rh3+ {[%emt 0:00:14]} (69... Rxh5 $142 70. Kf4 Rh4+ 71. Kg3 Rb4) 70. Kf4 {[%emt 0:00:21]} (70. Kg2 $142 Rxh5 71. Kg3) 70... Rh4+ {[%emt 0:00:06]} 71. Kg3 {[%emt 0:00:05]} Rxh5 {[%emt 0:00:04]} 72. Rc6+ {[%emt 0:00:08]} Be6 {[%emt 0:00:04]} 73. Rb6 {[%emt 0:00:10]} Rc5 {[%emt 0:00:08]} 74. Rb4 {[%emt 0:00:46]} Rc3 {[%emt 0:00:07]} 75. Rf4+ {[%emt 0:00:14]} Kg5 {[%emt 0:00:48] ( -> ...Rd3)} 76. Rd4 {[%emt 0:00:14] Inhibits Rd3.} g6 {[%emt 0:00:37]} 77. Re4 {[%emt 0:00:24] [#]} Rxf3+ $3 {[%emt 0:00:25][%mdl 512] Black mates.} 78. Kh2 {[%emt 0:00:55]} Bf5 {[%emt 0:00:30]} 79. Rb4 {[%emt 0:00:09]} Rf4 {[%emt 0:00:09]} 80. Rb2 {[%emt 0:00:08]} Kh4 {[%emt 0:00:09]} 81. Rg2 {[%emt 0:00:06]} Rc4 {[%emt 0:00:23]} 82. Rf2 {[%emt 0:00:31]} Rc2 {[%emt 0:00:05] Weighted Error Value: White=0.25 (precise) /Black=0.18 (very precise)} 0-1

[Event "13th KIIT Festival-A 2022"]
[Site "Bhubaneswar"]
[Date "2022.05.25"]
[Round "5.15"]
[White "Sangma, Rahul"]
[Black "Velpula Sarayu"]
[Result "1-0"]
[ECO "B92"]
[WhiteElo "2232"]
[BlackElo "1845"]
[Annotator "TA"]
[PlyCount "103"]
[EventDate "2022.05.15"]
[EventType "swiss"]
[EventCountry "IND"]
[SourceTitle "playchess.com"]
[Source "ChessBase"]
[SourceQuality "1"]
[TimeControl "5400+30"]

{[%evp 17,103,17,20,6,16,10,19,19,11,10,30,8,17,21,75,38,30,40,43,29,91,87,95,33,33,38,70,65,72,65,66,68,72,75,72,73,65,60,81,66,102,97,82,79,87,89,108,99,114,127,156,145,164,165,160,144,130,145,142,142,170,170,175,160,283,254,336,162,508,472,581,600,1030,941,1857,1837,1859,1659,2595,2339,2469,2329,2084,1739,6640,6656,6512,6254]} 1. e4 {[%emt 1:31:00]} c5 {[%emt 1:31:00]} 2. Nf3 {[%emt 0:00:30]} d6 {[%emt 0:00:30]} 3. d4 {[%emt 0:00:30]} cxd4 {[%emt 0:00:30]} 4. Nxd4 {[%emt 0:00:30]} Nf6 {[%emt 0:00:30]} 5. Nc3 {[%emt 0:00:30]} a6 {[%emt 0:00:30]} 6. Be2 {[%emt 0:00:30]} e5 {[%emt 0:00:30]} 7. Nb3 {[%emt 0:00:30]} Be7 {[%emt 0:00:30]} 8. Be3 {[%emt 0:00:30]} Be6 {[%emt 0:00:30]} 9. O-O {[%emt 0:00:30]} O-O {[%emt 0:00:30]} 10. Re1 {[%emt 0:00:30] 10.Qd3 gains popularity. B92: Sicilian Najdorf: 6 Be2.} Nc6 {[%emt 0:00:30]} 11. Bf3 {[%emt 0:00:30]} Na5 {[%emt 0:00:30]} 12. Nxa5 {[%emt 0:00:30] The position is equal.} Qxa5 {[%emt 0:00:30]} 13. Qd2 {[%emt 0:00:30]} Rfd8 {[%emt 0:00:30] [#]} (13... Rfc8 {looks sharper.} 14. Nd5 Qxd2 15. Nxe7+ Kf8) 14. Red1 $146 {[%emt 0:00:30]} ({Predecessor:} 14. Nd5 Qxd2 15. Nxe7+ Kf8 16. Bxd2 Kxe7 17. Ba5 Rdc8 18. c3 Nd7 19. Red1 Rc6 20. Rd2 {1-0 (64) Saveliev,A (2000)-Chigaeva,A (1793) St Petersburg 2010}) 14... Qc7 {[%emt 0:00:30]} 15. a4 {[%emt 0:00:30]} Nd7 {[%emt 0:00:30]} (15... b6 $11) 16. a5 {[%emt 0:00:30]} b6 {[%emt 0:00:30]} 17. axb6 {[%emt 0:00:30]} Nxb6 {[%emt 0:00:30]} 18. Be2 {[%emt 0:00:30]} Qb7 {[%emt 0:00:30]} (18... Nc4 $11 {remains equal.} 19. Bxc4 Qxc4) 19. b3 $16 {[%emt 0:00:30]} Rdc8 {[%emt 0:00:30]} 20. Na4 {[%emt 0:00:30]} ({White should try} 20. Bxb6 $16 Qxb6 21. Nd5 Bxd5 22. Qxd5) 20... Nxa4 $14 {[%emt 0:00:30]} 21. Rxa4 {[%emt 0:00:30]} Bd7 {[%emt 0:00:30]} 22. Rb4 {[%emt 0:00:30]} Qc7 {[%emt 0:00:30]} 23. Rc4 {[%emt 0:00:30]} Qb7 {[%emt 0:00:30]} 24. Rxc8+ {[%emt 0:00:30]} Rxc8 {[%emt 0:00:30]} 25. f3 {[%emt 0:00:30]} Qc6 {[%emt 0:00:30]} 26. Bd3 {[%emt 0:00:30][%cal Be2d3,Bd3c4,Bc4d5][%mdl 32]} Bd8 {[%emt 0:00:30]} 27. Bc4 {[%emt 0:00:30]} Bc7 {[%emt 0:00:30]} 28. Qd3 {[%emt 0:00:30] White is more active.} a5 {[%emt 0:00:30]} 29. Bd5 {[%emt 0:00:30]} Qb5 {[%emt 0:00:30]} 30. Qxb5 {[%emt 0:00:30]} Bxb5 {[%emt 0:00:30]} 31. Ra1 {[%emt 0:00:30]} Bd7 {[%emt 0:00:30]} 32. Kf1 {[%emt 0:00:30]} Kf8 {[%emt 0:00:30]} 33. Ke2 {[%emt 0:00:30]} Ke7 {[%emt 0:00:30]} 34. Kd3 {[%emt 0:00:30]} Bd8 {[%emt 0:00:30]} 35. Bg5+ {[%emt 0:00:30]} f6 {[%emt 0:00:30]} 36. Be3 {[%emt 0:00:30]} Be6 {[%emt 0:00:30]} 37. Bd2 {[%emt 0:00:30]} Bxd5 {[%emt 0:00:30]} 38. exd5 $16 {[%emt 0:00:30][%mdl 4096] Endgame KRB-KRB} Rc5 {[%emt 0:00:30]} 39. c4 {[%emt 0:00:30]} Kd7 {[%emt 0:00:30]} 40. g4 {[%emt 0:00:30]} g5 {[%emt 0:00:30]} (40... Ke7 $16 41. h4 Kd7) 41. Be1 {[%emt 0:00:30]} h6 {[%emt 0:00:30]} 42. h4 {[%emt 0:00:30]} (42. Ra4 $142) 42... Ke7 $2 {[%emt 0:00:30] [#]} (42... gxh4 {is tougher.} 43. Bxh4 Rc8) 43. h5 $18 {[%emt 0:00:30] White is clearly winning.} Kd7 {[%emt 0:00:30]} 44. b4 {[%emt 0:00:30]} axb4 {[%emt 0:00:30]} 45. Ra7+ {[%emt 0:00:30]} Rc7 {[%emt 0:00:30]} 46. Rxc7+ {[%emt 0:00:30]} Bxc7 {[%emt 0:00:30]} 47. Bxb4 {[%emt 0:00:30] KB-KB} Bb6 {[%emt 0:00:30]} 48. Ke4 {[%emt 0:00:30]} Ke7 {[%emt 0:00:30]} 49. Kf5 {[%emt 0:00:30]} Be3 {[%emt 0:00:30]} 50. Kg6 {[%emt 0:00:30]} Bf4 {[%emt 0:00:30]} 51. c5 {[%emt 0:00:30]} dxc5 {[%emt 0:00:30]} 52. Bxc5+ {[%emt 0:00:30] Weighted Error Value: White=0.12 (very precise) /Black=0.36} 1-0

[Event "13th KIIT Festival-A 2022"]
[Site "Bhubaneswar"]
[Date "2022.05.25"]
[Round "5.16"]
[White "Liyanage, Pesandu Rashmitha"]
[Black "Dhananjay S"]
[Result "1/2-1/2"]
[ECO "D00"]
[WhiteElo "1730"]
[BlackElo "2218"]
[Annotator "TA"]
[PlyCount "59"]
[EventDate "2022.05.15"]
[EventType "swiss"]
[EventCountry "IND"]
[SourceTitle "playchess.com"]
[Source "ChessBase"]
[SourceQuality "1"]
[TimeControl "5400+30"]

{[%evp 9,59,0,0,-4,0,-6,47,48,52,45,54,55,49,31,39,39,46,0,0,0,0,0,0,0,0,6,8,0,15,0,67,0,0,0,0,0,0,0,27,31,26,19,39,35,33,31,32,15,29997,0,18,-439]} 1. d4 {[%emt 0:03:14]} d5 {[%emt 0:00:05]} 2. Bf4 {[%emt 0:00:08]} c5 {[%emt 0:00:04]} 3. e3 {[%emt 0:00:05]} Nc6 {[%emt 0:00:06]} 4. c3 {[%emt 0:00:05]} Nf6 {[%emt 0:00:16]} 5. Nd2 {[%emt 0:00:08]} Bf5 {[%emt 0:03:24]} 6. Qb3 {[%emt 0:00:51] D00: 1 d4 d5: Unusual lines.} Qd7 {[%emt 0:00:45]} 7. Ngf3 {[%emt 0:01:01]} e6 {[%emt 0:05:31]} ({Black should play} 7... c4 $11 8. Qb5 Nh5) 8. Bb5 $14 {[%emt 0:04:23] White is slightly better.} c4 {[%emt 0:00:16]} 9. Qa4 {[%emt 0:14:27]} Bd6 {[%emt 0:02:00]} 10. Bxd6 {[%emt 0:01:19]} Qxd6 {[%emt 0:00:10]} 11. Ne5 {[%emt 0:00:04][%cal Re5c6]} O-O {[%emt 0:00:30]} 12. Bxc6 {[%emt 0:00:04]} bxc6 {[%emt 0:00:04]} 13. Qxc6 {[%emt 0:00:08]} (13. b3 $1 $14 {was preferrable.}) 13... Qb8 $11 {[%emt 0:00:09]} 14. b3 {[%emt 0:01:25]} cxb3 {[%emt 0:02:36] [#]} 15. axb3 $146 {[%emt 0:00:05]} ({Predecessor:} 15. Nxb3 Rc8 16. Qa6 Rxc3 17. O-O Ng4 18. Nxg4 Bxg4 19. Rfc1 Qc7 20. Nc5 Rxc1+ 21. Rxc1 {1-0 (38) Maltseva,E (1294)-Morozov,N (1098) Sochi 2019}) 15... Rc8 {[%emt 0:00:04][%mdl 64] [#] Deflection} 16. Qa4 {[%emt 0:00:06] With the idea c4.} Rxc3 {[%emt 0:00:11]} 17. O-O {[%emt 0:00:19]} Rc2 {[%emt 0:05:08]} 18. Qa5 {[%emt 0:07:03]} Qc8 {[%emt 0:01:04]} 19. h3 {[%emt 0:00:27]} Rb8 {[%emt 0:07:34] [#]} (19... Ne4 $11 20. Nxe4 Bxe4) 20. Rfd1 {[%emt 0:09:16]} (20. Qxa7 $1 $14 Rb7 21. Qa8) 20... Rb7 {[%emt 0:02:31]} 21. b4 {[%emt 0:00:12]} Ne4 {[%emt 0:01:44]} 22. Nxe4 {[%emt 0:01:08]} Bxe4 {[%emt 0:00:06]} 23. b5 {[%emt 0:00:45]} Rb2 {[%emt 0:07:45]} 24. Rdc1 {[%emt 0:02:29][%cal Rc1c8]} Qe8 {[%emt 0:03:57]} 25. Rc5 {[%emt 0:05:15] aiming for Rac1.} R2xb5 {[%emt 0:00:37]} 26. Rxb5 {[%emt 0:00:09]} Rxb5 {[%emt 0:00:03]} 27. Qxa7 {[%emt 0:00:16]} f6 {[%emt 0:57:20]} 28. Qd7 {[%emt 0:00:30]} Qxd7 {[%emt 0:00:00][%mdl 8192]} (28... Rb8 $11 29. Qxe8+ Rxe8) 29. Nxd7 $2 {[%emt 0:00:30]} (29. Ra8+ {mates} Rb8 30. Rxb8+ (30. Nxd7 $2 {too greedy.} Rxa8 31. Kh2 Ra2 $19) 30... Qe8 31. Rxe8#) 29... h5 {[%emt 0:01:00]} 30. Ne5 $2 {[%emt 0:00:30][%mdl 40960] Weighted Error Value: White=0.32/Black=0.45. An unexpected result.} 1/2-1/2

[Event "13th KIIT Festival-A 2022"]
[Site "Bhubaneswar"]
[Date "2022.05.25"]
[Round "5.17"]
[White "Sinthia Sarkar"]
[Black "Alekhya Mukhopadhyay"]
[Result "0-1"]
[ECO "B49"]
[WhiteElo "1569"]
[BlackElo "2162"]
[Annotator "TA"]
[PlyCount "50"]
[EventDate "2022.05.15"]
[EventType "swiss"]
[EventCountry "IND"]
[SourceTitle "playchess.com"]
[Source "ChessBase"]
[SourceQuality "1"]
[TimeControl "5400+30"]

{[%evp 18,50,-3,-12,0,0,22,0,14,-12,0,-8,-4,-35,-33,-50,-12,-89,-91,-82,-70,-72,-68,-68,-69,-72,-66,-81,-68,-302,-299,-733,-725,-681,-679]} 1. e4 {[%emt 0:02:58]} c5 {[%emt 0:00:07]} 2. Nf3 {[%emt 0:00:59]} e6 {[%emt 0:00:05]} 3. d4 {[%emt 0:00:05]} cxd4 {[%emt 0:00:07]} 4. Nxd4 {[%emt 0:00:06]} Nc6 {[%emt 0:00:08]} 5. a3 {[%emt 0:01:32]} Qc7 {[%emt 0:01:18]} 6. Be3 {[%emt 0:01:45]} Nf6 {[%emt 0:00:55]} 7. Nc3 {[%emt 0:00:21]} a6 {[%emt 0:01:19]} 8. Be2 {[%emt 0:03:16]} b5 {[%emt 0:01:28]} 9. O-O {[%emt 0:03:37]} Bb7 {[%emt 0:02:03]} 10. f4 {[%emt 0:08:14]} Nxd4 $1 {[%emt 0:16:17][%mdl 4] is now more promising than 10...d6. B49: Sicilian: Taimanov: 5 Nc3 Qc7 6 Be3 a6 7 Be2.} 11. Qxd4 {[%emt 0:04:34]} d6 {[%emt 0:00:37]} 12. Bf3 {[%emt 0:02:51]} Be7 {[%emt 0:01:07] The position is equal.} 13. Rad1 {[%emt 0:24:08]} Rc8 {[%emt 0:07:54]} 14. Kh1 {[%emt 0:05:08]} O-O {[%emt 0:05:54] [#]} 15. Rc1 $146 {[%emt 0:08:03]} ({Predecessor:} 15. Rfe1 Rfd8 16. f5 e5 17. Qb6 Qb8 18. Qa5 Rd7 19. Bb6 h6 20. a4 b4 21. Qxb4 {1-0 (51) Yurtaev,L (2515)-Hansen,C (2595) Yerevan 1996}) 15... Rfd8 {[%emt 0:05:09]} 16. Qd2 {[%emt 0:11:29]} Bc6 {[%emt 0:09:25]} 17. g4 {[%emt 0:05:39] [#]} (17. f5 $11 {keeps the balance.}) 17... d5 $1 $17 {[%emt 0:05:12]} 18. exd5 {[%emt 0:05:41]} Nxd5 {[%emt 0:00:53]} 19. Nxd5 {[%emt 0:00:42]} Bxd5 {[%emt 0:00:18][%cal Bc6d5,Bd5b3,Bb3c4][%mdl 32]} 20. Qg2 {[%emt 0:01:39]} Bc5 {[%emt 0:02:48]} 21. Bxc5 {[%emt 0:01:21]} Qxc5 {[%emt 0:00:15]} 22. c3 {[%emt 0:00:43]} Bb3 {[%emt 0:01:10] Black is more active.} 23. Bd1 $2 {[%emt 0:01:24] [#]} ({White should play} 23. Rce1 $15) 23... Bc4 $19 {[%emt 0:00:42]} 24. Be2 {[%emt 0:00:02]} (24. Rf2 Qe3 25. Ra1) 24... Rd2 {[%emt 0:00:34][%csl LRb2,LRe2]} 25. b4 {[%emt 0:03:31]} Qe3 {[%emt 0:00:53] Weighted Error Value: White=0.74/Black=0.07 (flawless)} ({Don't blunder} 25... Rxe2 $2 26. bxc5 Rxg2 27. Kxg2 Bxf1+ 28. Kxf1 $19) 0-1

[Event "13th KIIT Festival-A 2022"]
[Site "Bhubaneswar"]
[Date "2022.05.25"]
[Round "5.18"]
[White "Eshan Bhattacharjee"]
[Black "Manish Anto Cristiano F"]
[Result "1/2-1/2"]
[ECO "C52"]
[WhiteElo "1440"]
[BlackElo "2071"]
[Annotator "TA"]
[PlyCount "37"]
[EventDate "2022.05.15"]
[EventType "swiss"]
[EventCountry "IND"]
[SourceTitle "playchess.com"]
[Source "ChessBase"]
[SourceQuality "1"]
[TimeControl "5400+30"]

{[%evp 14,37,-2,-4,31,29,29,35,16,21,30,26,104,65,127,60,35,58,58,49,47,0,47,0,33,0]} 1. e4 {[%emt 0:00:09]} e5 {[%emt 0:00:07]} 2. Nf3 {[%emt 0:00:04]} Nc6 {[%emt 0:00:08]} 3. Bc4 {[%emt 0:00:05]} Bc5 {[%emt 0:00:10]} 4. b4 {[%emt 0:00:04]} Bxb4 {[%emt 0:01:11]} 5. c3 {[%emt 0:00:05]} Ba5 {[%emt 0:02:31]} 6. d4 {[%emt 0:00:19]} exd4 {[%emt 0:15:18] 6...d6 might become the main line.} 7. O-O {[%emt 0:00:33]} Nge7 {[%emt 0:05:15]} 8. Ng5 {[%emt 0:00:19]} (8. cxd4 $5 {[%cal Rf3g5]} d5 9. exd5 Nxd5 10. Ba3 $11 (10. Qb3 Be6 $11)) 8... Ne5 {[%emt 0:08:23] [#] C52: Evans Gambit Accepted: 5 c3 Ba5.} (8... d5 9. exd5 Ne5 10. Qxd4 f6) 9. Nxf7 $1 {[%emt 0:00:41][%mdl 64] Decoy} Nxf7 {[%emt 0:00:09]} 10. Bxf7+ {[%emt 0:00:14]} Kxf7 {[%emt 0:00:08]} 11. Qh5+ {[%emt 0:00:11]} Kg8 $1 {[%emt 0:05:22] ...d5 is the strong threat.} 12. Qxa5 {[%emt 0:00:26]} dxc3 {[%emt 0:02:20]} (12... d5) (12... d5 $11 {keeps the balance.}) 13. Nxc3 {[%emt 0:25:18] And now Nd5 would win.} (13. Qxc3 h6 14. Bb2) (13. Qxc3 {is more complex.} h6 14. Bb2 Rh7 15. Re1) 13... h6 {[%emt 0:08:39] [#]} (13... b6 14. Qa3 h6) (13... b6 $1 $14 14. Qa3 h6) 14. Nd5 $146 {[%emt 0:02:34] White is much more active. The black rooks are badly placed.} (14. Nb5) (14. Nb5 $1 $16 {[%cal Rb5c7]}) ({Predecessor:} 14. Ba3 d6 15. Rad1 Nc6 16. Qd5+ Kh7 17. f4 Re8 18. e5 Qd7 19. exd6 cxd6 20. Bxd6 {½-½ (32) Baudin,F (2169)-Hater,D Leopoldsburg 2000}) 14... Nxd5 $14 {[%emt 0:01:53]} 15. Qxd5+ {[%emt 0:00:57]} Kh7 {[%emt 0:00:06]} 16. Qf5+ {[%emt 0:05:33][%mdl 1024] White has compensation.} Kg8 {[%emt 0:00:02]} 17. Qd5+ {[%emt 0:05:28]} Kh7 {[%emt 0:00:09]} 18. Qf5+ {[%emt 0:06:00]} Kg8 {[%emt 0:00:02]} 19. Qd5+ {[%emt 0:00:10] Weighted Error Value: White=0.25 (precise) /Black=0.25 (precise)} 1/2-1/2